[Event "Belgrade Spring IM-I 2021"]
[Site "Belgrade"]
[Date "2021.04.16"]
[Round "1.8"]
[White "Milanovic, Slavisa"]
[Black "Blagojevic, Tijana"]
[Result "1/2-1/2"]
[ECO "D52"]
[WhiteElo "2301"]
[BlackElo "2193"]
[Annotator "ChessBase"]
[PlyCount "146"]
[EventDate "2021.04.16"]
[EventType "tourn"]
[EventCountry "SRB"]
[SourceTitle "playchess.com"]
[Source "ChessBase"]
[SourceQuality "1"]
[TimeControl "40/5400+30:1800+30"]

1. d4 {[%emt 0:00:00]} d5 {[%emt 0:00:00]} 2. c4 {[%emt 0:00:00]} c6 {[%emt 0:00:00]} 3. Nc3 {[%emt 0:00:06]} Nf6 {[%emt 0:00:00]} 4. Nf3 {[%emt 0:00:08]} e6 {[%emt 0:00:06]} 5. Bg5 {[%emt 0:00:09]} Nbd7 {[%emt 0:00:23]} 6. e3 {[%emt 0:00:46]} Qa5 {[%emt 0:00:18]} 7. cxd5 {[%emt 0:00:41]} Nxd5 {[%emt 0:00:35]} 8. Qd2 {[%emt 0:00:23]} Bb4 {[%emt 0:01:15]} 9. Rc1 {[%emt 0:00:07]} h6 {[%emt 0:01:01]} 10. Bh4 {[%emt 0:00:08]} b6 {[%emt 0:01:27]} 11. e4 {[%emt 0:02:39]} Nxc3 {[%emt 0:00:51]} 12. bxc3 {[%emt 0:00:07]} Ba3 {[%emt 0:00:27]} 13. Rc2 {[%emt 0:02:06]} Ba6 {[%emt 0:04:44]} 14. Bxa6 {[%emt 0:02:35]} Qxa6 {[%emt 0:00:04]} 15. c4 {[%emt 0:00:19]} c5 {[%emt 0:17:04]} 16. O-O {[%emt 0:00:20]} Bb4 {[%emt 0:08:20]} 17. Qd3 {[%emt 0:08:04]} Qa3 {[%emt 0:07:29]} 18. Qe2 {[%emt 0:01:46]} cxd4 {[%emt 0:07:58]} 19. Nxd4 {[%emt 0:00:32]} O-O {[%emt 0:00:54]} 20. e5 {[%emt 0:06:25]} Rfc8 {[%emt 0:30:00]} 21. Rd1 {[%emt 0:05:40]} Qa4 {[%emt 0:00:03]} 22. Rd3 {[%emt 0:14:39]} Bc5 {[%emt 0:01:00]} 23. Nb3 {[%emt 0:00:29]} Nf8 {[%emt 0:00:44]} 24. g4 {[%emt 0:10:24]} Ng6 {[%emt 0:01:30]} 25. Bg3 {[%emt 0:00:51]} Be7 {[%emt 0:01:49]} 26. f4 {[%emt 0:02:17]} Rd8 {[%emt 0:00:55]} 27. Rf3 {[%emt 0:02:38]} Qc6 {[%emt 0:00:55]} 28. Rf1 {[%emt 0:06:14]} Bc5+ {[%emt 0:00:56]} 29. Nxc5 {[%emt 0:00:18]} Qxc5+ {[%emt 0:00:03]} 30. Kg2 {[%emt 0:00:27]} Qc6+ {[%emt 0:00:21]} 31. Kh3 {[%emt 0:03:41]} Rd4 {[%emt 0:00:23]} 32. f5 {[%emt 0:02:09]} exf5 {[%emt 0:01:18]} 33. gxf5 {[%emt 0:00:08]} Nf8 {[%emt 0:00:28]} 34. e6 {[%emt 0:06:46]} Nh7 {[%emt 0:00:55]} 35. exf7+ {[%emt 0:03:11]} Kxf7 {[%emt 0:00:21]} 36. Qe6+ {[%emt 0:00:22]} Qxe6 {[%emt 0:00:10]} 37. fxe6+ {[%emt 0:00:06]} Kg6 {[%emt 0:00:27]} 38. Re2 {[%emt 0:12:19]} Re8 {[%emt 0:04:36]} 39. e7 {[%emt 0:05:08]} Re4 {[%emt 0:01:38]} 40. Rxe4 {[%emt 0:00:00]} Ng5+ {[%emt 0:00:00]} 41. Kg4 {[%emt 0:04:17]} Nxe4 {[%emt 0:00:14]} 42. Re1 {[%emt 0:01:02]} Nxg3 {[%emt 0:02:35]} 43. hxg3 {[%emt 0:01:23]} Kf6 {[%emt 0:01:34]} 44. c5 {[%emt 0:01:13]} bxc5 {[%emt 0:09:09]} 45. Rc1 {[%emt 0:00:30]} Rxe7 {[%emt 0:01:30]} 46. Rxc5 {[%emt 0:00:06]} Re4+ {[%emt 0:03:16]} 47. Kf3 {[%emt 0:04:55]} Ra4 {[%emt 0:00:44]} 48. Rc6+ {[%emt 0:01:18]} Ke5 {[%emt 0:01:49]} 49. Rg6 {[%emt 0:00:59]} Kf5 {[%emt 0:00:37]} 50. Rxg7 {[%emt 0:00:10]} Ra3+ {[%emt 0:00:02]} 51. Kf2 {[%emt 0:02:37]} Rxa2+ {[%emt 0:00:06]} 52. Kf3 {[%emt 0:00:07]} Ra3+ {[%emt 0:00:24]} 53. Kf2 {[%emt 0:00:27]} a5 {[%emt 0:00:21]} 54. Rh7 {[%emt 0:01:01]} Kg6 {[%emt 0:00:19]} 55. Ra7 {[%emt 0:00:16]} a4 {[%emt 0:02:34]} 56. Kg2 {[%emt 0:02:12]} Ra1 {[%emt 0:00:24]} 57. Kh3 {[%emt 0:04:11]} a3 {[%emt 0:01:12]} 58. Ra5 {[%emt 0:00:55]} Kf6 {[%emt 0:01:10]} 59. Kg2 {[%emt 0:00:18]} Ke6 {[%emt 0:05:29]} 60. Rh5 {[%emt 0:03:31]} Ra2+ {[%emt 0:03:26]} 61. Kf3 {[%emt 0:01:15]} Rb2 {[%emt 0:01:03]} 62. Rxh6+ {[%emt 0:00:24]} Kd5 {[%emt 0:02:11]} 63. Ra6 {[%emt 0:00:12]} a2 {[%emt 0:00:30]} 64. g4 {[%emt 0:01:06]} Kc4 {[%emt 0:00:35]} 65. g5 {[%emt 0:01:17]} Kb3 {[%emt 0:02:31]} 66. g6 {[%emt 0:02:39]} Rb1 {[%emt 0:01:16]} 67. Ke4 {[%emt 0:00:45]} a1=Q {[%emt 0:01:11]} 68. Rxa1 {[%emt 0:00:05]} Rxa1 {[%emt 0:00:03]} 69. Kf5 {[%emt 0:00:27]} Kc4 {[%emt 0:01:30]} 70. g7 {[%emt 0:00:23]} Rg1 {[%emt 0:00:27]} 71. Kf6 {[%emt 0:00:06]} Kd5 {[%emt 0:00:14]} 72. Kf7 {[%emt 0:00:07]} Rxg7+ {[%emt 0:00:19]} 73. Kxg7 {[%emt 0:00:32]} Ke4 1/2-1/2

[Event "Belgrade Spring IM-I 2021"]
[Site "Belgrade"]
[Date "2021.04.17"]
[Round "2.6"]
[White "Djokic, Nenad"]
[Black "Jovanovic, Sasa T"]
[Result "1/2-1/2"]
[ECO "D24"]
[WhiteElo "2329"]
[BlackElo "2155"]
[Annotator "ChessBase"]
[PlyCount "55"]
[EventDate "2021.04.16"]
[EventType "tourn"]
[EventCountry "SRB"]
[SourceTitle "playchess.com"]
[Source "ChessBase"]
[SourceQuality "1"]
[TimeControl "40/5400+30:1800+30"]

1. d4 {[%emt 0:00:00]} Nf6 {[%emt 0:00:00]} 2. Nf3 {[%emt 0:00:00]} e6 {[%emt 0:00:00]} 3. c4 {[%emt 0:00:00]} d5 {[%emt 0:01:12]} 4. Nc3 {[%emt 0:01:06]} dxc4 {[%emt 0:02:00]} 5. e4 {[%emt 0:01:04]} b5 {[%emt 0:01:14]} 6. e5 {[%emt 0:03:44]} Nd5 {[%emt 0:00:10]} 7. Nxb5 {[%emt 0:01:05]} Nb6 {[%emt 0:02:33]} 8. Nc3 {[%emt 0:00:59]} Nc6 {[%emt 0:04:39]} 9. Be2 {[%emt 0:02:37]} Be7 {[%emt 0:01:07]} 10. O-O {[%emt 0:00:11]} O-O {[%emt 0:00:15]} 11. Be3 {[%emt 0:01:08]} Nb4 {[%emt 0:00:37]} 12. a3 {[%emt 0:07:58]} N4d5 {[%emt 0:12:33]} 13. Rc1 {[%emt 0:05:13]} Nxc3 {[%emt 0:05:42]} 14. Rxc3 {[%emt 0:01:36]} Rb8 {[%emt 0:00:05]} 15. Qc1 {[%emt 0:12:07]} Ba6 {[%emt 0:11:00]} 16. b4 {[%emt 0:13:40]} Bb5 {[%emt 0:03:01]} 17. Nd2 {[%emt 0:08:52]} Nd5 {[%emt 0:04:07]} 18. Rc2 {[%emt 0:00:20]} c3 {[%emt 0:01:59]} 19. Ne4 {[%emt 0:10:03]} Bxe2 {[%emt 0:05:46]} 20. Rxe2 {[%emt 0:00:38]} a5 {[%emt 0:00:07]} 21. Nxc3 {[%emt 0:02:07]} Nxc3 {[%emt 0:06:33]} 22. Qxc3 {[%emt 0:00:02]} axb4 {[%emt 0:00:10]} 23. axb4 {[%emt 0:00:09]} Bxb4 {[%emt 0:00:41]} 24. Qc6 {[%emt 0:02:31]} Ba5 {[%emt 0:02:10]} 25. g3 {[%emt 0:00:28]} Qe8 {[%emt 0:00:56]} 26. Rc1 {[%emt 0:07:31]} Qxc6 {[%emt 0:00:21]} 27. Rxc6 {[%emt 0:00:02]} Rfd8 {[%emt 0:00:29]} 28. Rec2 {[%emt 0:00:27]} 1/2-1/2

[Event "Belgrade Spring IM-I 2021"]
[Site "Belgrade"]
[Date "2021.04.19"]
[Round "5.6"]
[White "Milanovic, Slavisa"]
[Black "Djokic, Nenad"]
[Result "1/2-1/2"]
[ECO "A30"]
[WhiteElo "2301"]
[BlackElo "2329"]
[Annotator "ChessBase"]
[PlyCount "25"]
[EventDate "2021.04.16"]
[EventType "tourn"]
[EventCountry "SRB"]
[SourceTitle "playchess.com"]
[Source "ChessBase"]
[SourceQuality "1"]
[TimeControl "40/5400+30:1800+30"]

1. c4 {[%emt 0:00:55]} c5 {[%emt 0:00:00]} 2. Nf3 {[%emt 0:00:12]} Nf6 {[%emt 0:00:12]} 3. Nc3 {[%emt 0:01:49]} b6 {[%emt 0:00:41]} 4. g3 {[%emt 0:03:02]} Bb7 {[%emt 0:00:14]} 5. Bg2 {[%emt 0:00:08]} g6 {[%emt 0:02:10]} 6. O-O {[%emt 0:03:07]} Bg7 {[%emt 0:00:08]} 7. d4 {[%emt 0:00:29]} cxd4 {[%emt 0:00:19]} 8. Qxd4 {[%emt 0:00:08]} O-O {[%emt 0:00:21]} 9. Qh4 {[%emt 0:02:00]} d6 {[%emt 0:00:21]} 10. Bh6 {[%emt 0:06:47]} Nbd7 {[%emt 0:00:20]} 11. Rfd1 {[%emt 0:02:59]} Rc8 {[%emt 0:00:28]} 12. b3 {[%emt 0:00:18]} Rc5 {[%emt 0:15:06]} 13. Bxg7 {[%emt 1:14:36]} 1/2-1/2

[Event "Belgrade Spring IM-I 2021"]
[Site "Belgrade"]
[Date "2021.04.19"]
[Round "5.9"]
[White "Jovanovic, Sasa T"]
[Black "Zegarac, Vuk"]
[Result "1/2-1/2"]
[ECO "A67"]
[WhiteElo "2155"]
[BlackElo "2376"]
[Annotator "ChessBase"]
[PlyCount "56"]
[EventDate "2021.04.16"]
[EventType "tourn"]
[EventCountry "SRB"]
[SourceTitle "playchess.com"]
[Source "ChessBase"]
[SourceQuality "1"]
[TimeControl "40/5400+30:1800+30"]

1. d4 {[%emt 0:00:00]} Nf6 {[%emt 0:00:00]} 2. c4 {[%emt 0:00:00]} c5 {[%emt 0:00:00]} 3. d5 {[%emt 0:00:00]} e6 {[%emt 0:00:11]} 4. Nc3 {[%emt 0:00:00]} exd5 {[%emt 0:00:05]} 5. cxd5 {[%emt 0:00:00]} d6 {[%emt 0:00:05]} 6. e4 {[%emt 0:00:08]} g6 {[%emt 0:00:07]} 7. f4 {[%emt 0:00:03]} Bg7 {[%emt 0:00:05]} 8. Bb5+ {[%emt 0:00:03]} Nfd7 {[%emt 0:00:06]} 9. Nf3 {[%emt 0:00:04]} a6 {[%emt 0:00:06]} 10. Bd3 {[%emt 0:00:05]} b5 {[%emt 0:00:05]} 11. O-O {[%emt 0:00:06]} O-O {[%emt 0:00:05]} 12. Qe1 {[%emt 0:00:06]} Re8 {[%emt 0:01:18]} 13. Qg3 {[%emt 0:00:06]} b4 {[%emt 0:00:26]} 14. Na4 {[%emt 0:00:09]} Ra7 {[%emt 0:00:20]} 15. Be3 {[%emt 0:07:42]} Nf6 {[%emt 0:01:41]} 16. e5 {[%emt 0:07:21]} Ng4 {[%emt 0:12:09]} 17. Rae1 {[%emt 0:07:52]} Nxe3 {[%emt 0:01:16]} 18. Rxe3 {[%emt 0:00:09]} Bd7 {[%emt 0:03:19]} 19. Bc2 {[%emt 0:01:41]} Qa5 {[%emt 0:05:32]} 20. b3 {[%emt 0:05:31]} c4 {[%emt 0:01:45]} 21. Qf2 {[%emt 0:09:26]} Bxa4 {[%emt 0:03:02]} 22. bxa4 {[%emt 0:01:38]} Rae7 {[%emt 0:00:59]} 23. Re4 {[%emt 0:04:10]} Qxd5 {[%emt 0:07:15]} 24. Rd1 {[%emt 0:01:56]} Qc5 {[%emt 0:04:57]} 25. Qxc5 {[%emt 0:02:26]} dxc5 {[%emt 0:00:04]} 26. Rxc4 {[%emt 0:00:10]} Rc7 {[%emt 0:00:21]} 27. Bb3 {[%emt 0:12:57]} Bf8 {[%emt 0:09:20]} 28. Re4 {[%emt 0:03:51]} Kg7 {[%emt 0:03:11]} 1/2-1/2

[Event "Belgrade Spring IM-I 2021"]
[Site "Belgrade"]
[Date "2021.04.20"]
[Round "7.10"]
[White "Blagojevic, Tijana"]
[Black "Zegarac, Vuk"]
[Result "1/2-1/2"]
[ECO "B12"]
[WhiteElo "2193"]
[BlackElo "2376"]
[Annotator "NA"]
[PlyCount "58"]
[EventDate "2021.04.16"]
[EventType "tourn"]
[EventCountry "SRB"]
[SourceTitle "playchess.com"]
[Source "ChessBase"]
[SourceQuality "1"]
[TimeControl "40/5400+30:1800+30"]

1. e4 {[%emt 0:00:00]} c6 {[%emt 0:00:02]} 2. d4 {[%emt 0:00:00]} d5 {[%emt 0:00:06]} 3. e5 {[%emt 0:00:00]} c5 {[%emt 0:00:05]} 4. dxc5 {[%emt 0:00:00]} e6 {[%emt 0:00:05]} 5. Nf3 {[%emt 0:00:00]} Bxc5 {[%emt 0:00:06]} 6. Bd3 {[%emt 0:00:00]} Ne7 {[%emt 0:00:05]} 7. O-O {[%emt 0:00:07]} Ng6 {[%emt 0:00:20]} 8. a3 {[%emt 0:00:40]} Be7 {[%emt 0:00:06]} 9. b4 {[%emt 0:03:42]} a5 {[%emt 0:00:07]} 10. b5 {[%emt 0:05:12]} Nd7 {[%emt 0:00:17]} 11. Re1 {[%emt 0:00:49]} Nc5 {[%emt 0:00:23]} 12. c4 {[%emt 0:02:54]} a4 {[%emt 0:08:18]} 13. Nc3 {[%emt 0:04:05]} Nb3 {[%emt 0:04:41]} 14. Ra2 {[%emt 0:00:23]} Nxc1 {[%emt 0:02:10]} 15. Qxc1 {[%emt 0:00:22]} dxc4 {[%emt 0:04:10]} 16. Bxc4 {[%emt 0:01:25]} O-O {[%emt 0:00:08]} 17. Ne4 {[%emt 0:05:39]} b6 {[%emt 0:03:43]} 18. Rc2 {[%emt 0:10:04]} Bb7 {[%emt 0:02:14]} 19. g3 {[%emt 0:10:32]} Qb8 {[%emt 0:04:03]} 20. Qb2 {[%emt 0:00:53]} Bxe4 {[%emt 0:02:04]} 21. Rxe4 {[%emt 0:00:06]} Qb7 {[%emt 0:00:14]} 22. Bd3 {[%emt 0:06:59]} Rfd8 {[%emt 0:01:40]} 23. Re3 {[%emt 0:00:14]} Rac8 {[%emt 0:01:26]} 24. Be4 {[%emt 0:02:50]} Qb8 {[%emt 0:01:26]} 25. h4 {[%emt 0:02:16]} Rd1+ {[%emt 0:04:48]} 26. Kg2 {[%emt 0:02:06]} Bc5 {[%emt 0:00:10]} 27. Ree2 {[%emt 0:00:51]} Rcd8 {[%emt 0:00:30]} 28. h5 {[%emt 0:01:16]} Ne7 {[%emt 0:00:37]} 29. Rcd2 {[%emt 0:01:22]} R1xd2 {[%emt 0:00:13]} 1/2-1/2

[Event "Belgrade Spring IM-I 2021"]
[Site "Belgrade"]
[Date "2021.04.21"]
[Round "8.6"]
[White "Djokic, Nenad"]
[Black "Zegarac, Vuk"]
[Result "0-1"]
[ECO "E10"]
[WhiteElo "2329"]
[BlackElo "2376"]
[Annotator "ChessBase"]
[PlyCount "78"]
[EventDate "2021.04.16"]
[EventType "tourn"]
[EventCountry "SRB"]
[SourceTitle "playchess.com"]
[Source "ChessBase"]
[SourceQuality "1"]
[TimeControl "40/5400+30:1800+30"]

1. d4 {[%emt 0:00:00]} Nf6 {[%emt 0:00:00]} 2. Nf3 {[%emt 0:00:00]} e6 {[%emt 0:00:22]} 3. c4 {[%emt 0:00:05]} c5 {[%emt 0:00:05]} 4. d5 {[%emt 0:00:13]} b5 {[%emt 0:00:07]} 5. Bg5 {[%emt 0:00:53]} exd5 {[%emt 0:01:33]} 6. cxd5 {[%emt 0:00:12]} h6 {[%emt 0:01:06]} 7. Bxf6 {[%emt 0:03:44]} Qxf6 {[%emt 0:00:06]} 8. Qc2 {[%emt 0:08:28]} Be7 {[%emt 0:09:40]} 9. e4 {[%emt 0:01:08]} Qb6 {[%emt 0:00:14]} 10. Nc3 {[%emt 0:07:11]} a6 {[%emt 0:03:49]} 11. a4 {[%emt 0:01:27]} b4 {[%emt 0:00:51]} 12. a5 {[%emt 0:07:22]} Qb7 {[%emt 0:02:19]} 13. Na4 {[%emt 0:02:48]} d6 {[%emt 0:00:09]} 14. Nb6 {[%emt 0:00:25]} Ra7 {[%emt 0:00:09]} 15. Bd3 {[%emt 0:04:27]} O-O {[%emt 0:02:27]} 16. O-O {[%emt 0:00:15]} Nd7 {[%emt 0:07:24]} 17. Nc4 {[%emt 0:02:00]} Qb8 {[%emt 0:01:43]} 18. Rfe1 {[%emt 0:02:07]} Bf6 {[%emt 0:00:54]} 19. Re2 {[%emt 0:01:35]} Re8 {[%emt 0:03:16]} 20. Rae1 {[%emt 0:01:48]} Bb7 {[%emt 0:04:21]} 21. Qd1 {[%emt 0:02:56]} Ba8 {[%emt 0:02:37]} 22. Bc2 {[%emt 0:00:39]} Nf8 {[%emt 0:01:56]} 23. Ba4 {[%emt 0:03:06]} Rd8 {[%emt 0:00:51]} 24. Qd3 {[%emt 0:01:11]} Ng6 {[%emt 0:01:26]} 25. g3 {[%emt 0:00:22]} Re7 {[%emt 0:00:59]} 26. Nb6 {[%emt 0:10:17]} Bb7 {[%emt 0:02:12]} 27. Bb3 {[%emt 0:02:42]} Bc8 {[%emt 0:01:54]} 28. Nxc8 {[%emt 0:03:11]} Qxc8 {[%emt 0:01:59]} 29. Bc4 {[%emt 0:00:08]} Ra7 {[%emt 0:01:15]} 30. Kh1 {[%emt 0:01:15]} Re8 {[%emt 0:02:12]} 31. Qb3 {[%emt 0:01:20]} h5 {[%emt 0:04:58]} 32. h4 {[%emt 0:06:08]} Rae7 {[%emt 0:02:33]} 33. Re3 {[%emt 0:02:33]} Bd4 {[%emt 0:04:50]} 34. R3e2 {[%emt 0:00:20]} Qh3+ {[%emt 0:02:48]} 35. Nh2 {[%emt 0:00:02]} Ne5 {[%emt 0:00:27]} 36. Kg1 {[%emt 0:07:16]} Nxc4 {[%emt 0:00:43]} 37. Qxc4 {[%emt 0:00:02]} Qxg3+ {[%emt 0:00:10]} 38. Kh1 {[%emt 0:00:05]} Qxh4 {[%emt 0:01:29]} 39. Qxa6 {[%emt 0:01:23]} Be5 {[%emt 0:00:57]} 0-1

[Event "Belgrade Spring IM-I 2021"]
[Site "Belgrade"]
[Date "2021.04.21"]
[Round "8.7"]
[White "Hart, Alexander"]
[Black "Blagojevic, Tijana"]
[Result "0-1"]
[ECO "D10"]
[WhiteElo "2016"]
[BlackElo "2193"]
[Annotator "ChessBase"]
[PlyCount "92"]
[EventDate "2021.04.16"]
[EventType "tourn"]
[EventCountry "SRB"]
[SourceTitle "playchess.com"]
[Source "ChessBase"]
[SourceQuality "1"]
[TimeControl "40/5400+30:1800+30"]

1. d4 {[%emt 0:00:00]} d5 {[%emt 0:00:00]} 2. c4 {[%emt 0:00:00]} c6 {[%emt 0:00:00]} 3. cxd5 {[%emt 0:00:00]} cxd5 {[%emt 0:00:00]} 4. Nc3 {[%emt 0:00:00]} Nf6 {[%emt 0:00:01]} 5. Bf4 {[%emt 0:00:00]} Nc6 {[%emt 0:00:18]} 6. e3 {[%emt 0:00:10]} Bg4 {[%emt 0:00:23]} 7. f3 {[%emt 0:00:08]} Bd7 {[%emt 0:00:29]} 8. g4 {[%emt 0:00:23]} e6 {[%emt 0:00:41]} 9. Bd3 {[%emt 0:00:12]} Be7 {[%emt 0:01:15]} 10. Nge2 {[%emt 0:00:06]} Nb4 {[%emt 0:02:11]} 11. Bb1 {[%emt 0:01:04]} Rc8 {[%emt 0:00:09]} 12. a3 {[%emt 0:01:36]} Nc6 {[%emt 0:00:04]} 13. h4 {[%emt 0:04:11]} Na5 {[%emt 0:01:12]} 14. Bd3 {[%emt 0:05:41]} Nc4 {[%emt 0:01:45]} 15. Qc2 {[%emt 0:10:17]} Qb6 {[%emt 0:04:06]} 16. Ra2 {[%emt 0:06:23]} Bd6 {[%emt 0:05:39]} 17. Bxd6 {[%emt 0:13:06]} Qxd6 {[%emt 0:00:22]} 18. Bxc4 {[%emt 0:09:14]} Rxc4 {[%emt 0:01:17]} 19. g5 {[%emt 0:00:21]} Nh5 {[%emt 0:00:56]} 20. f4 {[%emt 0:00:43]} O-O {[%emt 0:01:38]} 21. b4 {[%emt 0:04:39]} Rfc8 {[%emt 0:00:53]} 22. Qd2 {[%emt 0:12:00]} Qc6 {[%emt 0:18:02]} 23. Rc2 {[%emt 0:14:18]} Qa6 {[%emt 0:00:33]} 24. Kf2 {[%emt 0:00:20]} g6 {[%emt 0:06:45]} 25. Ra2 {[%emt 0:03:06]} Qc6 {[%emt 0:02:02]} 26. Rc2 {[%emt 0:01:45]} Rc7 {[%emt 0:07:33]} 27. Rhc1 {[%emt 0:00:32]} Rc8 {[%emt 0:07:39]} 28. Rb2 {[%emt 0:02:07]} Ng7 {[%emt 0:00:55]} 29. Rbc2 {[%emt 0:01:15]} Nf5 {[%emt 0:00:11]} 30. Rb1 {[%emt 0:05:43]} Nd6 {[%emt 0:00:51]} 31. Rcc1 {[%emt 0:00:57]} Kf8 {[%emt 0:02:09]} 32. Kg1 {[%emt 0:02:04]} Ke7 {[%emt 0:00:37]} 33. a4 {[%emt 0:01:10]} Nf5 {[%emt 0:04:50]} 34. Kf2 {[%emt 0:01:35]} Nxh4 {[%emt 0:01:08]} 35. Nb5 {[%emt 0:00:24]} Qb6 {[%emt 0:01:35]} 36. Rxc4 {[%emt 0:01:01]} Rxc4 {[%emt 0:00:46]} 37. Na3 {[%emt 0:00:46]} Rc8 {[%emt 0:00:51]} 38. a5 {[%emt 0:00:31]} Qc6 {[%emt 0:03:09]} 39. Rc1 {[%emt 0:00:54]} Qa4 {[%emt 0:01:27]} 40. Rxc8 {[%emt 0:00:00]} Bxc8 {[%emt 0:00:00]} 41. Qc1 {[%emt 0:04:54]} Kd8 {[%emt 0:09:36]} 42. Qc3 {[%emt 0:14:08]} Nf5 {[%emt 0:02:04]} 43. b5 {[%emt 0:00:57]} Nd6 {[%emt 0:01:14]} 44. Qc1 {[%emt 0:07:10]} Qxa5 {[%emt 0:00:32]} 45. Qb2 {[%emt 0:00:37]} Bd7 {[%emt 0:01:23]} 46. Nc3 {[%emt 0:00:02]} Qxc3 {[%emt 0:00:29]} 0-1

[Event "Belgrade Spring IM-I 2021"]
[Site "Belgrade"]
[Date "2021.04.21"]
[Round "8.8"]
[White "Govedarica, Radovan"]
[Black "Ivanovic, Marko"]
[Result "1-0"]
[ECO "C60"]
[WhiteElo "2300"]
[BlackElo "2282"]
[Annotator "ChessBase"]
[PlyCount "77"]
[EventDate "2021.04.16"]
[EventType "tourn"]
[EventCountry "SRB"]
[SourceTitle "playchess.com"]
[Source "ChessBase"]
[SourceQuality "1"]
[TimeControl "40/5400+30:1800+30"]

1. e4 {[%emt 0:00:01]} e5 {[%emt 0:08:23]} 2. Nf3 {[%emt 0:00:01]} Nc6 {[%emt 0:00:06]} 3. Bb5 {[%emt 0:00:00]} g6 {[%emt 0:00:07]} 4. O-O {[%emt 0:01:16]} Bg7 {[%emt 0:00:15]} 5. c3 {[%emt 0:00:07]} d6 {[%emt 0:00:03]} 6. h3 {[%emt 0:00:08]} Nge7 {[%emt 0:00:04]} 7. d4 {[%emt 0:00:04]} Bd7 {[%emt 0:00:22]} 8. dxe5 {[%emt 0:02:56]} dxe5 {[%emt 0:00:14]} 9. Bc4 {[%emt 0:00:06]} O-O {[%emt 0:00:31]} 10. Be3 {[%emt 0:00:52]} h6 {[%emt 0:00:11]} 11. Qd2 {[%emt 0:00:24]} Kh7 {[%emt 0:00:48]} 12. Rd1 {[%emt 0:00:07]} Qc8 {[%emt 0:04:20]} 13. Na3 {[%emt 0:02:40]} Be8 {[%emt 0:13:18]} 14. Qe2 {[%emt 0:05:26]} a6 {[%emt 0:05:41]} 15. Nc2 {[%emt 0:02:59]} b6 {[%emt 0:03:52]} 16. Bc1 {[%emt 0:07:38]} f5 {[%emt 0:08:23]} 17. b3 {[%emt 0:04:25]} f4 {[%emt 0:01:30]} 18. Ba3 {[%emt 0:00:08]} Rf6 {[%emt 0:01:58]} 19. Bxe7 {[%emt 0:00:38]} Nxe7 {[%emt 0:00:04]} 20. a4 {[%emt 0:04:57]} Rf8 {[%emt 0:10:33]} 21. Nb4 {[%emt 0:00:34]} a5 {[%emt 0:00:22]} 22. Nd3 {[%emt 0:01:12]} c6 {[%emt 0:01:31]} 23. Nde1 {[%emt 0:09:56]} Qc7 {[%emt 0:01:03]} 24. Qd2 {[%emt 0:00:16]} Rf6 {[%emt 0:01:00]} 25. Qb2 {[%emt 0:03:06]} g5 {[%emt 0:02:14]} 26. Be2 {[%emt 0:01:58]} Rf7 {[%emt 0:12:09]} 27. Rd2 {[%emt 0:02:31]} Bf6 {[%emt 0:01:43]} 28. Rad1 {[%emt 0:00:41]} Nc8 {[%emt 0:00:26]} 29. Nh2 {[%emt 0:01:19]} Rd7 {[%emt 0:15:22]} 30. Ng4 {[%emt 0:11:00]} Bg7 {[%emt 0:00:53]} 31. Rxd7 {[%emt 0:00:54]} Bxd7 {[%emt 0:00:04]} 32. Nf3 {[%emt 0:00:10]} Be6 {[%emt 0:05:51]} 33. Bc4 {[%emt 0:01:41]} Bxc4 {[%emt 0:01:38]} 34. bxc4 {[%emt 0:00:01]} Nd6 {[%emt 0:01:27]} 35. h4 {[%emt 0:01:13]} gxh4 {[%emt 0:00:28]} 36. Nxh4 {[%emt 0:00:01]} h5 {[%emt 0:00:30]} 37. Nh2 {[%emt 0:00:03]} Bf6 {[%emt 0:00:27]} 38. Qe2 {[%emt 0:00:06]} Kh6 {[%emt 0:00:04]} 39. Rxd6 {[%emt 0:00:17]} 1-0

[Event "Belgrade Spring IM-I 2021"]
[Site "Belgrade"]
[Date "2021.04.21"]
[Round "8.9"]
[White "Milanovic, Slavisa"]
[Black "Jovanovic, Sasa T"]
[Result "1/2-1/2"]
[ECO "A38"]
[WhiteElo "2301"]
[BlackElo "2155"]
[Annotator "NA"]
[PlyCount "22"]
[EventDate "2021.04.16"]
[EventType "tourn"]
[EventCountry "SRB"]
[SourceTitle "playchess.com"]
[Source "ChessBase"]
[SourceQuality "1"]
[TimeControl "40/5400+30:1800+30"]

1. c4 {[%emt 0:00:00]} c5 {[%emt 0:00:33]} 2. Nc3 {[%emt 0:00:08]} Nf6 {[%emt 0:00:07]} 3. g3 {[%emt 0:00:23]} g6 {[%emt 0:00:15]} 4. Bg2 {[%emt 0:00:19]} Bg7 {[%emt 0:00:05]} 5. Nf3 {[%emt 0:00:19]} O-O {[%emt 0:00:06]} 6. O-O {[%emt 0:00:15]} Nc6 {[%emt 0:00:10]} 7. e3 {[%emt 0:00:33]} e6 {[%emt 0:00:11]} 8. d4 {[%emt 0:00:06]} cxd4 {[%emt 0:00:16]} 9. Nxd4 {[%emt 0:00:06]} Nxd4 {[%emt 0:00:09]} 10. exd4 {[%emt 0:00:04]} d5 {[%emt 0:00:05]} 11. cxd5 {[%emt 0:00:04]} exd5 {[%emt 0:00:05]} 1/2-1/2

[Event "Belgrade Spring IM-I 2021"]
[Site "Belgrade"]
[Date "2021.04.21"]
[Round "8.10"]
[White "Krasteva, Beloslava"]
[Black "Savitha Shri B"]
[Result "1/2-1/2"]
[ECO "D95"]
[WhiteElo "2287"]
[BlackElo "2261"]
[Annotator "ChessBase"]
[PlyCount "63"]
[EventDate "2021.04.16"]
[EventType "tourn"]
[EventCountry "SRB"]
[SourceTitle "playchess.com"]
[Source "ChessBase"]
[SourceQuality "1"]
[TimeControl "40/5400+30:1800+30"]

1. d4 {[%emt 0:00:00]} Nf6 {[%emt 0:00:00]} 2. c4 {[%emt 0:00:00]} g6 {[%emt 0:00:00]} 3. Nc3 {[%emt 0:00:00]} d5 {[%emt 0:00:00]} 4. e3 {[%emt 0:02:19]} Bg7 {[%emt 0:00:00]} 5. Qb3 {[%emt 0:00:24]} c6 {[%emt 0:03:16]} 6. Nf3 {[%emt 0:03:37]} O-O {[%emt 0:00:24]} 7. cxd5 {[%emt 0:00:53]} cxd5 {[%emt 0:00:21]} 8. Bd3 {[%emt 0:00:50]} Nc6 {[%emt 0:00:49]} 9. O-O {[%emt 0:01:24]} Rb8 {[%emt 0:06:00]} 10. h3 {[%emt 0:09:16]} h6 {[%emt 0:02:38]} 11. Bd2 {[%emt 0:02:08]} Be6 {[%emt 0:00:23]} 12. Rfc1 {[%emt 0:08:03]} Ne4 {[%emt 0:06:44]} 13. Na4 {[%emt 0:07:23]} f5 {[%emt 0:22:05]} 14. Nc5 {[%emt 0:13:13]} Bf7 {[%emt 0:06:48]} 15. Qd1 {[%emt 0:04:16]} e5 {[%emt 0:10:32]} 16. dxe5 {[%emt 0:08:59]} Nxe5 {[%emt 0:04:49]} 17. Nxe5 {[%emt 0:01:05]} Bxe5 {[%emt 0:00:32]} 18. Rab1 {[%emt 0:01:49]} Nxd2 {[%emt 0:01:27]} 19. Qxd2 {[%emt 0:00:07]} Qe7 {[%emt 0:02:39]} 20. Nb3 {[%emt 0:01:47]} Rbc8 {[%emt 0:05:09]} 21. Nd4 {[%emt 0:06:09]} a6 {[%emt 0:02:10]} 22. Rc2 {[%emt 0:04:51]} Rxc2 {[%emt 0:02:56]} 23. Qxc2 {[%emt 0:00:02]} Qb4 {[%emt 0:04:46]} 24. a3 {[%emt 0:01:16]} Qb6 {[%emt 0:00:12]} 25. Rd1 {[%emt 0:05:10]} Rd8 {[%emt 0:02:27]} 26. h4 {[%emt 0:05:03]} h5 {[%emt 0:01:16]} 27. g3 {[%emt 0:01:18]} Rd7 {[%emt 0:01:02]} 28. Qc8+ {[%emt 0:01:23]} Rd8 {[%emt 0:00:01]} 29. Qc2 {[%emt 0:00:32]} Rd7 {[%emt 0:00:01]} 30. Qc8+ {[%emt 0:03:26]} Rd8 {[%emt 0:00:03]} 31. Qc2 {[%emt 0:00:07]} Rd7 {[%emt 0:00:10]} 32. Qc8+ {[%emt 0:07:22]} 1/2-1/2